bitfinex-derivatives/quotes_ETHF0:USTF0_20250123
["timestamp","ask_amount","ask_price","bid_price","bid_amount"]
[1737662160712,0.29312465,3199.0,3198.8,3.83281]
[1737662160914,0.62499,3198.9,3198.7,3.2078]
[1737662161113,0.00468787,3199.1,3198.4,0.00468787]
[1737662161413,0.62501,3198.8,3198.4,0.00468787]
[1737662161618,0.62502,3198.8,3198.4,0.00468787]
[1737662161917,0.62497,3199.0,3198.8,0.625]
[1737662162116,0.00468787,3199.1,3198.6,3.2078]
[1737662162316,0.00468787,3199.1,3199.0,0.62497]
[1737662163115,0.00468787,3199.1,3199.0,3.83277]
[1737662163317,5.7011,3200.2,3199.1,1.56238]
[1737662163526,0.62479,3200.0,3199.4,3.2078]
[1737662163821,0.62479,3200.0,3199.7,0.62482]
[1737662164016,3.2078,3200.2,3199.4,3.2078]
[1737662164326,3.2078,3200.2,3199.5,1.56218]
[1737662164620,0.00307281,3200.1,3200.0,0.62478]
[1737662166519,3.2078,3200.2,3200.1,0.62476]
[1737662167418,3.2078,3200.2,3199.8,4.6919]
[1737662167613,0.62476,3200.1,3199.9,0.62478]
[1737662167816,0.62479,3200.0,3199.8,5.3167]
[1737662168017,0.6248,3199.9,3199.8,5.3167]
[1737662168221,0.6248,3199.9,3199.8,4.6919]
[1737662168421,3.2078,3200.2,3199.6,2.4869]
[1737662168617,0.62483,3199.8,3199.2,2.3329]
[1737662168919,0.6248,3199.9,3199.8,0.62481]
[1737662169114,0.62479,3200.0,3199.8,0.62481]
[1737662169311,3.2078,3200.2,3200.1,0.62476]
[1737662169511,3.2078,3200.6,3200.5,0.62468]
[1737662170123,2.3032,3201.2,3200.3,0.62471]
[1737662170319,2.3032,3201.2,3200.3,0.62472]
[1737662170320,3.83251,3200.4,3200.3,0.62472]
[1737662170622,1.56141,3201.1,3200.2,7.94568787]
[1737662170623,0.62466,3200.6,3200.2,7.94568787]
[1737662170824,7.07237,3201.2,3200.5,0.62466]
[1737662171115,7.07237,3201.2,3200.2,7.94568787]
[1737662171116,4.14797527,3201.0,3200.2,7.94568787]
[1737662171315,3.2078,3200.6,3200.2,7.94568787]
[1737662171513,0.62472,3200.4,3200.2,5.36261787]
[1737662171716,0.62472,3200.3,3200.2,4.73788787]
[1737662171916,0.62472,3200.3,3200.2,0.00468787]
[1737662172415,0.62472,3200.3,3200.2,0.62942787]
[1737662172717,0.62472,3200.3,3200.2,0.00468787]
[1737662173119,0.62472,3200.4,3200.3,0.62471]
[1737662173320,0.62472,3200.3,3200.2,0.00468787]
[1737662173519,0.62472,3200.3,3200.2,0.62942787]
[1737662173726,0.6247,3200.5,3200.3,0.62472]
[1737662174030,0.62471,3200.4,3200.3,0.62471]
[1737662174321,0.62471,3200.4,3200.3,0.6247]
[1737662174518,0.62472,3200.3,3200.2,0.62941787]
[1737662174715,3.2078,3200.6,3200.2,0.62941787]
[1737662174917,3.2078,3200.6,3200.3,0.62471]
[1737662175925,3.2078,3200.6,3200.2,0.00468787]
[1737662176119,3.2078,3200.6,3200.3,0.62471]
[1737662176421,0.62461,3200.9,3200.5,0.62467]
[1737662176726,0.62467,3200.6,3200.3,0.62471]
[1737662176924,0.62465,3200.7,3200.3,0.62471]
[1737662177319,0.62465,3200.7,3200.4,0.62469]
[1737662177618,0.62465,3200.7,3200.3,0.62472]
[1737662177820,3.2078,3201.0,3200.2,0.00468787]
[1737662178024,3.2078,3201.0,3200.9,0.6246]
[1737662178228,2.92775,3201.2,3200.4,2.18641]
[1737662178425,2.3032,3201.2,3200.5,3.2078]
[1737662178723,3.2078,3200.8,3200.2,0.00468787]
[1737662178932,4.02784063,3201.1,3200.2,0.00468787]
[1737662178933,0.62472,3200.3,3200.2,0.00468787]
[1737662179422,9.15716063,3200.3,3200.2,0.00468787]
[1737662179619,4.5046,3200.3,3200.2,0.00468787]
[1737662179823,3.2078,3200.4,3200.2,0.00468787]
[1737662180022,3.8325,3200.4,3200.2,0.62940787]
[1737662180217,3.2078,3200.4,3200.2,0.00468787]
[1737662180417,3.2078,3200.4,3200.3,0.62472]
[1737662180627,2.3499,3201.0,3200.2,0.00468787]
[1737662180824,0.62472,3200.3,3200.2,0.00468787]
[1737662181721,3.83252,3200.3,3200.2,0.00468787]
[1737662182226,0.62466,3200.6,3200.3,0.62472]
[1737662182428,3.83245,3200.7,3200.5,0.62466]
[1737662182629,3.2078,3200.7,3200.2,0.00468787]
[1737662182826,2.3499,3201.0,3200.9,0.6246]
[1737662183023,2.97449,3201.0,3200.8,0.62461]
[1737662183227,2.3499,3201.0,3200.4,4.6877]
[1737662183425,0.6246,3200.9,3200.7,0.62462]
[1737662183628,0.62463,3200.8,3200.4,4.6877]
[1737662183830,3.2078,3201.2,3200.4,4.6877]
[1737662184031,0.62457,3201.1,3200.9,0.62459]
[1737662184231,3.2078,3201.2,3200.5,40.8]
[1737662184428,3.83235,3201.2,3200.6,3.2078]
[1737662184732,0.62459,3201.0,3200.8,0.62461]
[1737662185242,3.2078,3201.2,3201.1,0.62456]
[1737662185443,0.62451,3201.4,3201.2,0.62453]
[1737662185841,4.08039633,3201.5,3201.0,3.2078]
[1737662186043,2.99217,3201.6,3201.4,0.6245]
[1737662186345,2.3677,3201.6,3201.4,0.6245]
[1737662186542,0.62451,3201.4,3201.3,0.62451]
[1737662186746,0.62452,3201.3,3201.2,0.62453]
[1737662187045,0.62449,3201.5,3201.3,0.62452]
[1737662187233,2.3677,3201.6,3201.0,3.2078]
[1737662187438,0.62455,3201.2,3201.0,0.62457]
[1737662187641,4.00092892,3201.5,3201.0,0.62457]
[1737662187642,0.62456,3201.1,3201.0,0.62457]
[1737662187942,0.62447,3201.6,3201.5,0.62447]
[1737662188344,3.83225,3201.7,3201.6,0.62446]
[1737662188545,3.83225,3201.7,3201.0,3.2078]
[1737662188546,3.2078,3201.7,3201.0,5.5305]
[1737662188847,0.62454,3201.3,3201.0,2.3227]
[1737662189041,0.62452,3201.3,3201.2,0.62453]
[1737662189235,0.62454,3201.3,3201.0,2.3227]
[1737662189443,3.2078,3201.7,3201.0,2.3227]
[1737662189638,0.62448,3201.6,3201.5,0.62448]
[1737662189937,0.62448,3201.6,3201.0,2.3227]
[1737662189938,0.62439,3202.0,3201.9,0.62439]
[1737662190241,0.62435,3202.2,3201.8,0.62441]
[1737662190442,4.76854,3202.5,3201.9,0.6244]
[1737662190443,0.6244,3202.0,3201.9,0.6244]
[1737662190635,0.6244,3202.0,3201.4,6.26432]
[1737662190636,2.61814862,3202.3,3201.7,0.62443]
[1737662190846,4.13837649,3202.0,3201.2,3.2078]
[1737662191044,0.62452,3201.3,3201.2,3.2078]
[1737662191251,0.62461,3200.9,3200.3,4.76957]
[1737662191443,3.2078,3201.2,3201.1,0.62456]
[1737662191840,0.62448,3201.5,3201.4,0.6245]
[1737662192045,0.62452,3201.4,3201.3,0.62452]
[1737662192353,0.62452,3201.4,3200.9,1.56149]
[1737662192354,0.6245,3201.5,3201.4,0.6245]
[1737662192654,0.62449,3201.5,3201.0,2.18604]
[1737662192947,0.62449,3201.5,3201.4,0.6245]
[1737662193144,3.2078,3201.6,3200.7,3.2078]
[1737662193654,0.62455,3201.2,3201.1,0.62455]
[1737662193953,0.62454,3201.3,3201.2,0.62453]
[1737662194442,0.62457,3201.1,3200.7,3.2078]
[1737662194642,0.62457,3201.1,3201.0,0.62458]
[1737662194952,4.76898,3201.6,3200.7,3.2078]
[1737662195152,0.62455,3201.2,3201.1,0.62454]
[1737662195355,0.62452,3201.4,3201.3,0.6245]
[1737662195652,0.62449,3201.5,3201.4,0.62448]
[1737662195952,0.6245,3201.5,3201.4,0.62449]
[1737662197056,1.56107,3201.8,3200.8,1.56153]
[1737662197249,0.62452,3201.4,3201.3,0.62451]
[1737662197556,2.2892,3202.0,3200.9,2.99998586]
[1737662197747,0.62452,3201.4,3201.3,0.6245]
[1737662197942,4.13327832,3201.9,3200.9,2.99998586]
[1737662198154,0.62461,3200.9,3200.8,0.62461]
[1737662198354,0.62463,3200.8,3200.7,0.62462]
[1737662198648,0.62455,3201.2,3201.1,0.62454]
[1737662199051,4.40981173,3201.6,3200.6,1.56162]
[1737662199254,0.29288685,3201.6,3200.3,7.0237]
[1737662199446,1.56121,3201.6,3200.9,0.6246]
[1737662199755,0.62455,3201.2,3201.1,0.62455]
[1737662199948,3.83235,3201.2,3201.1,0.62455]
[1737662200449,3.2078,3201.2,3200.6,1.56165]
[1737662200753,0.62456,3201.1,3201.0,0.62458]
[1737662201052,0.62456,3201.1,3200.5,2.99998586]
[1737662201053,0.62458,3201.0,3200.9,0.62459]
[1737662201251,0.62457,3201.1,3201.0,0.62457]
[1737662201441,0.62457,3201.1,3200.6,0.62466]
[1737662201754,0.6246,3200.9,3200.8,0.6246]
[1737662202046,3.2078,3201.2,3200.5,2.99998586]
[1737662202251,0.62458,3201.1,3201.0,0.62457]
[1737662202456,3.2078,3201.2,3201.1,0.62456]
[1737662203160,0.62451,3201.4,3201.3,0.62452]
[1737662203854,3.2078,3201.6,3201.0,40.8]
[1737662204050,3.2078,3201.6,3201.5,0.62448]
[1737662204257,3.2078,3202.2,3201.3,2.99998586]
[1737662204555,3.2078,3202.7,3202.6,0.62427]
[1737662204751,3.2078,3203.1,3203.0,0.62419]
[1737662204949,3.2078,3203.1,3202.1,4.5609]
[1737662204950,3.2078,3203.6,3202.8,3.2078]
[1737662205149,0.62402,3204.0,3203.7,0.62405]
[1737662205350,2.283,3204.1,3203.1,2.99998586]
[1737662205849,1.80579009,3204.5,3203.1,2.99998586]
[1737662205850,0.6239,3204.5,3204.1,0.62396]
[1737662206042,2.99998586,3205.6,3204.1,0.62396]
[1737662206043,3.2078,3205.2,3204.1,3.2078]
[1737662206240,3.2078,3205.2,3204.4,2.99998586]
[1737662206452,0.62378,3205.1,3204.6,0.62386]
[1737662206658,0.62382,3205.0,3204.5,0.62857041]
[1737662206841,3.2078,3205.2,3204.6,0.62388]
[1737662206842,0.62379,3205.1,3204.6,0.62388]
[1737662207253,3.83156,3205.2,3204.7,0.62384]
[1737662207445,3.2078,3205.2,3204.5,3.21248041]
[1737662208255,4.02147303,3205.1,3204.5,3.21248041]
[1737662208655,0.62388,3204.6,3204.5,0.00468041]
[1737662209046,0.62383,3204.9,3204.5,0.00468041]
[1737662209245,0.62383,3204.9,3204.5,0.62858041]
[1737662209448,0.62383,3204.9,3204.5,0.00468041]
[1737662209755,0.62388,3204.6,3204.5,0.00468041]
[1737662210256,3.2078,3204.8,3204.5,0.00468041]
[1737662210653,0.62384,3204.9,3204.5,0.00468041]
[1737662210959,0.62383,3204.9,3204.5,0.00468041]
[1737662211352,0.62381,3205.0,3204.5,0.62857041]
[1737662212852,0.62383,3204.9,3204.5,0.00468041]
[1737662213360,4.10283983,3205.3,3204.5,0.00468041]
[1737662213659,0.62376,3205.2,3204.5,0.00468041]
[1737662213853,0.62381,3205.0,3204.5,0.62858041]
[1737662214055,3.2078,3204.9,3204.5,0.00468041]
[1737662214355,0.62388,3204.6,3204.5,0.00468041]
[1737662214759,4.75898482,3204.6,3204.5,0.00468041]
[1737662215257,0.62388,3204.6,3204.5,0.00468041]
[1737662215657,4.75632912,3204.6,3204.5,0.00468041]
[1737662216955,9.13244912,3204.6,3203.2,2.99998586]
[1737662217160,3.2078,3203.7,3203.0,2.345]
[1737662217654,3.2078,3203.7,3203.2,2.99998586]
[1737662217855,0.62407,3203.7,3203.2,3.62411586]
[1737662218057,3.2078,3204.3,3203.2,2.99998586]
[1737662218256,0.00465553,3203.8,3203.7,0.62405]
[1737662218458,0.00465553,3203.8,3203.6,2.99998586]
[1737662218661,0.00465553,3203.8,3203.6,3.62405586]
[1737662219655,0.00465553,3203.8,3203.7,0.62405]
[1737662220559,0.00465553,3203.8,3203.2,5.5475]
[1737662220767,0.62415,3203.2,3203.1,0.00468041]
[1737662220956,3.2078,3203.2,3203.1,0.00468041]
[1737662221150,0.62415,3203.2,3203.1,0.00468041]
[1737662221756,4.61573382,3203.2,3203.1,0.00468041]
[1737662221960,7.82353382,3203.2,3203.1,0.00468041]
[1737662222157,7.82353382,3203.2,3203.1,4.1e-07]
[1737662222362,12.82353382,3203.2,3203.1,4.1e-07]
[1737662222557,0.62446,3201.6,3201.3,0.62451]
[1737662222758,0.62443,3201.8,3201.5,0.62447]
[1737662222959,3.2078,3202.0,3201.3,40.8]
[1737662223159,0.62454,3201.2,3201.1,2.3251]
[1737662223362,3.8323,3201.5,3201.2,0.62453]
[1737662223562,3.2078,3201.5,3201.3,0.62451]
[1737662223757,0.00468041,3201.7,3201.6,0.62446]
[1737662225758,0.00468041,3201.7,3201.6,41.42446]
[1737662226763,0.00468041,3201.7,3201.6,44.42444586]
[1737662228474,0.62912041,3201.7,3201.6,40.8]
[1737662228765,0.62912041,3201.7,3201.5,3.83227]
[1737662228967,0.00468041,3201.7,3201.5,3.2078]
[1737662229264,0.62452,3201.3,3201.1,6.15745]
[1737662229466,3.99597833,3201.6,3201.1,5.5329]
[1737662229663,0.62452,3201.4,3201.2,0.62453]
[1737662230162,0.62451,3201.4,3201.2,0.62453]
[1737662230568,0.62451,3201.4,3201.1,5.5329]
[1737662230769,0.00468041,3201.7,3201.2,2.99998586]
[1737662230964,0.00468041,3201.7,3201.6,3.62444586]
[1737662231775,3.2078,3202.4,3202.3,0.62433]
[1737662231972,3.2078,3202.4,3202.3,40.8]
[1737662232169,3.2078,3202.4,3202.3,41.42433]
[1737662232364,3.2078,3202.4,3202.3,40.8]
[1737662232564,3.2078,3202.4,3202.3,41.42433]
[1737662232765,3.2078,3202.4,3202.3,0.62433]
[1737662233366,0.62431,3202.4,3202.3,3.2078]
[1737662233571,0.00465553,3202.7,3202.3,3.2078]
[1737662233766,0.00465553,3202.7,3202.3,3.83212]
[1737662234068,0.62427,3202.6,3202.3,3.83212]
[1737662234273,0.00465553,3202.7,3202.4,0.62429]
[1737662234459,0.00465553,3202.7,3202.3,3.2078]
[1737662234661,0.00465553,3202.7,3202.4,0.6243]
[1737662234867,0.62428,3202.6,3202.4,0.6243]
[1737662235371,0.62428,3202.6,3202.3,3.83212]
[1737662235566,0.62892553,3202.7,3202.4,0.6243]
[1737662235771,0.62438,3202.1,3201.9,6.22099]
[1737662235971,3.2078,3202.0,3201.5,3.2078]
[1737662236268,4.00784236,3202.0,3201.9,0.62441]
[1737662236470,0.62431,3202.4,3202.2,0.62434]
[1737662236866,3.2078,3202.4,3202.0,0.62438]
[1737662237068,0.62434,3202.3,3202.1,0.62437]
[1737662237365,3.83212,3202.4,3202.2,0.62433]
[1737662237564,3.83212,3202.4,3202.0,2.99998586]
[1737662237565,3.2078,3202.4,3202.3,0.62433]
[1737662237768,0.6243,3202.5,3202.3,0.62433]
[1737662237974,0.00465553,3202.7,3202.0,2.99998586]
[1737662238272,0.62891553,3202.7,3202.5,0.62428]
[1737662238976,0.00465553,3202.7,3202.0,2.99998586]
[1737662239273,0.62431,3202.4,3202.2,0.62434]
[1737662239677,0.00465553,3202.7,3202.0,2.99998586]
[1737662239863,0.62892553,3202.7,3202.1,0.62437]
[1737662240069,0.62429,3202.5,3202.3,0.62431]
[1737662240267,0.00465553,3202.7,3202.0,2.99998586]
[1737662240471,0.62429,3202.5,3202.4,0.6243]
[1737662240673,0.6243,3202.5,3202.3,0.62431]
[1737662241078,0.00465553,3202.7,3202.0,2.99998586]
[1737662241270,0.00465553,3202.7,3202.3,0.62432]
[1737662241580,3.2078,3202.6,3201.9,3.2078]
[1737662241879,0.62452,3201.4,3201.2,2.96983]
[1737662242074,3.2078,3201.6,3201.2,2.3453]
[1737662242378,3.83227,3201.6,3201.4,0.62449]
[1737662242677,3.83227,3201.6,3201.2,2.3453]
[1737662242974,4.07144484,3201.5,3201.0,0.00468041]
[1737662243275,0.62456,3201.1,3201.0,0.00468041]
[1737662243667,3.2078,3201.1,3200.0,5.45448586]
[1737662243874,1.56146,3201.0,3200.4,0.6247]
[1737662244064,0.62465,3200.7,3200.5,0.62467]
[1737662244471,3.2078,3201.1,3200.5,0.62467]
[1737662244773,0.00468041,3200.9,3200.5,0.62467]
[1737662244975,0.62465,3200.7,3200.5,0.62467]
[1737662245163,0.62465,3200.7,3200.3,0.00468041]
[1737662245372,0.00468041,3200.9,3200.8,0.62462]
[1737662245670,0.00468041,3200.9,3200.8,3.62460586]
[1737662245869,3.2078,3201.7,3201.6,0.62446]
[1737662246269,3.2078,3201.7,3201.6,41.42446]
[1737662246665,0.62435,3202.2,3202.1,0.62437]
[1737662246879,0.62431,3202.4,3202.2,0.62434]
[1737662247072,2.2509,3202.5,3201.7,2.4141]
[1737662247073,0.6244,3202.0,3201.8,0.62441]
[1737662247377,0.62441,3201.9,3201.8,0.00468041]
[1737662248377,0.62439,3202.0,3201.8,0.62909041]
[1737662248686,0.62439,3202.0,3201.8,0.00468041]
[1737662248875,0.62439,3202.0,3201.8,0.62909041]
[1737662249176,0.62441,3201.9,3201.8,0.62910041]
[1737662249371,0.6244,3202.0,3201.8,0.00468041]
[1737662249580,2.25555553,3202.5,3201.8,0.00468041]
[1737662249779,0.00465553,3202.5,3202.4,0.62431]
[1737662249978,0.00465553,3202.5,3201.8,3.00466627]
[1737662250178,0.00465553,3202.5,3202.4,0.62431]
[1737662252371,0.00465553,3202.5,3202.3,2.4294]
[1737662252572,0.62431,3202.4,3202.2,3.83215]
[1737662252882,0.62895553,3202.5,3202.2,3.2078]
[1737662253080,0.00465553,3202.5,3202.3,0.62432]
[1737662253281,0.00465553,3202.5,3202.2,3.2078]
[1737662253486,0.00465553,3202.5,3202.4,0.62431]
[1737662255180,0.62432,3202.4,3202.2,3.2078]
[1737662255485,0.00465553,3202.5,3202.4,0.62431]
[1737662256087,3.2078,3203.3,3203.2,0.62415]
[1737662256782,0.62404,3203.8,3203.1,0.62417]
[1737662256988,0.62404,3203.8,3203.6,0.62406]
[1737662257286,3.2078,3204.1,3203.1,44.0078]
[1737662257481,0.62403,3203.9,3203.1,44.0078]
[1737662257682,3.2078,3204.1,3203.1,44.0078]
[1737662258284,3.2078,3203.6,3203.0,2.99998586]
[1737662258483,3.2078,3203.6,3202.7,2.2659]
[1737662259079,0.62412,3203.4,3203.1,0.62416]
[1737662259273,3.2078,3203.6,3202.8,2.4154]
[1737662259588,0.62407,3203.6,3203.0,2.99998586]
[1737662259787,0.62407,3203.6,3203.3,0.62412]
[1737662260291,3.83186,3203.7,3203.4,0.62411]
[1737662260493,3.83186,3203.7,3203.5,0.62409]
[1737662260681,3.2078,3203.7,3202.9,3.2078]
[1737662260879,0.62409,3203.6,3203.4,0.62411]
[1737662261181,3.2078,3203.7,3203.6,0.62407]
[1737662261378,3.2078,3203.7,3203.0,2.99998586]
[1737662261584,3.2078,3203.7,3203.3,0.62412]
[1737662261783,0.62408,3203.6,3203.3,0.62412]
[1737662261980,3.2078,3203.7,3203.3,0.62412]
[1737662262182,3.2078,3203.7,3202.9,2.18474]
[1737662262383,3.83187,3203.7,3203.4,0.6241]
[1737662262686,3.2078,3204.1,3203.0,2.99998586]
[1737662262885,3.2078,3204.1,3202.9,1.56053]
[1737662262886,3.83169,3204.6,3204.4,0.62391]
[1737662263192,0.62388,3204.6,3203.8,2.99998586]
[1737662263387,0.62388,3204.6,3204.3,0.62393]
[1737662263988,0.62388,3204.6,3204.2,0.00468041]
[1737662263989,0.29259508,3204.9,3204.2,0.00468041]
[1737662264184,0.29259508,3204.9,3204.5,0.62389]
[1737662264384,0.62391,3204.5,3204.2,0.62863041]
[1737662264780,3.2078,3204.6,3204.2,0.00468041]
[1737662264985,0.62394,3204.3,3204.2,0.00468041]
[1737662265785,9.08649904,3204.3,3203.1,3.2078]
[1737662265987,0.6241,3203.5,3203.3,0.62413]
[1737662266182,0.6241,3203.5,3203.3,0.62412]
[1737662266391,0.62408,3203.6,3203.4,0.62411]
[1737662266689,0.62407,3203.6,3203.4,0.62411]
[1737662267294,0.62408,3203.6,3203.4,0.62411]
[1737662267594,0.00468041,3203.8,3203.2,0.00468041]
[1737662267990,0.62405,3203.7,3203.5,0.62408]
[1737662268197,0.62411,3203.5,3203.3,0.62413]
[1737662268588,0.62411,3203.5,3203.2,0.00468041]
[1737662268589,3.2078,3203.5,3203.2,0.00468041]
[1737662268796,0.62413,3203.3,3203.2,0.00468041]
[1737662269093,0.62412,3203.4,3203.2,0.62882041]
[1737662269488,3.2078,3203.5,3203.2,0.00468041]
[1737662269686,0.62407,3203.7,3203.5,0.62408]
[1737662270088,0.62405,3203.7,3203.2,0.00468041]
[1737662270295,0.62409,3203.6,3203.4,0.62411]
[1737662271099,0.00468041,3203.8,3203.2,0.00468041]
[1737662271100,0.62406,3203.7,3203.6,0.62407]
[1737662271292,0.62873041,3203.8,3203.6,0.62407]
[1737662271500,0.62408,3203.6,3203.5,0.62409]
[1737662271809,0.00468041,3203.8,3203.4,0.62411]
[1737662272009,0.62411,3203.4,3203.2,0.62882041]
[1737662272206,3.2078,3203.5,3203.2,0.00468041]
[1737662272402,0.62413,3203.3,3203.2,0.62882041]
[1737662272708,0.62412,3203.4,3203.3,0.62412]
[1737662272899,0.62413,3203.4,3203.2,0.62882041]
[1737662273303,0.62413,3203.3,3203.2,0.62882041]
[1737662273507,0.62412,3203.4,3203.2,0.62881041]
[1737662273711,0.62412,3203.4,3203.3,0.62413]
[1737662273896,3.8319,3203.5,3203.4,0.62411]
[1737662274200,3.2078,3203.5,3203.4,0.62411]
[1737662274401,3.83189,3203.5,3203.4,0.62411]
[1737662274596,0.62409,3203.5,3203.4,0.62411]
[1737662274803,0.00468041,3203.8,3203.7,0.62405]
[1737662276310,0.62406,3203.7,3203.4,2.99998586]
[1737662276502,0.62406,3203.7,3203.6,0.62405]
[1737662276703,3.21248041,3203.8,3203.5,0.62409]
[1737662276903,0.62405,3203.7,3203.6,0.62407]
[1737662277113,0.62408,3203.6,3203.5,0.62408]
[1737662277316,3.21248041,3203.8,3203.2,0.00468041]
[1737662277317,0.62405,3203.7,3203.4,0.62409]
[1737662277516,0.6241,3203.5,3203.4,0.6241]
[1737662277713,0.62409,3203.6,3203.5,0.62408]
[1737662277919,0.62408,3203.6,3203.5,0.62408]
[1737662278210,0.62405,3203.7,3203.3,0.62413]
[1737662278415,0.62405,3203.7,3203.2,1.56506041]
[1737662278416,0.62405,3203.7,3203.6,0.62407]
[1737662278716,0.00468041,3203.8,3203.7,0.62405]
[1737662280616,3.2078,3204.3,3203.4,5.38708586]
[1737662280813,3.83169,3204.6,3204.5,0.6239]
[1737662281008,0.62392,3204.4,3204.1,2.99998586]
[1737662281214,0.62394,3204.3,3204.2,0.62394]
[1737662281412,0.58519859,3204.5,3203.8,2.2939]
[1737662281614,0.58519859,3204.5,3203.3,8.50168586]
[1737662281615,0.00233519,3203.8,3203.3,8.50168586]
[1737662281815,0.62411,3203.4,3203.2,0.00468041]
[1737662282119,3.21013519,3203.8,3203.2,0.00468041]
[1737662282120,4.14582701,3203.7,3203.2,0.00468041]
[1737662282320,0.62413,3203.3,3203.2,0.00468041]
[1737662282506,0.62409,3203.5,3203.4,0.62411]
[1737662282712,0.6241,3203.5,3203.4,0.6241]
[1737662283015,2.2264,3203.6,3203.2,0.00468041]
[1737662283213,0.62413,3203.3,3203.2,0.00468041]
[1737662283814,0.62413,3203.3,3203.2,0.62883041]
[1737662284014,3.83192,3203.4,3203.3,0.62413]
[1737662284219,3.83191,3203.4,3203.3,0.62413]
[1737662285520,0.62413,3203.3,3203.2,0.62882041]
[1737662285710,3.83192,3203.4,3203.2,0.00468041]
[1737662285914,3.2078,3203.4,3203.3,0.62413]
[1737662286422,3.83191,3203.4,3203.3,0.62413]
[1737662286616,0.6241,3203.5,3203.3,0.62413]
[1737662286824,0.62413,3203.4,3203.2,0.62882041]
[1737662287618,3.2078,3203.5,3203.2,0.62882041]
[1737662287927,3.2078,3203.5,3203.4,0.62411]
[1737662288925,0.62413,3203.4,3203.2,0.62882041]
[1737662289217,1.20949052,3203.4,3203.3,0.62412]
[1737662289423,0.29269694,3203.4,3203.3,0.62412]
[1737662290416,0.91680694,3203.4,3203.3,0.62412]
[1737662290622,0.58538627,3203.4,3203.3,0.62412]
[1737662290920,0.29269694,3203.4,3203.3,0.62412]
[1737662291319,0.62413,3203.3,3203.2,0.00468041]
[1737662291730,2.94913,3203.3,3203.2,0.00468041]
[1737662292024,3.69199765,3203.3,3203.2,0.00468041]
[1737662292221,3.98469459,3203.3,3203.2,0.00468041]
[1737662292827,3.53452738,3203.3,3203.2,0.00468041]
[1737662293725,2.99998586,3204.0,3203.2,0.00468041]
[1737662293922,7.973,3215.3,3206.2,0.62355]
[1737662293923,0.62349,3206.6,3206.2,0.62355]
[1737662294133,0.45002017,3206.8,3206.0,2.99998586]
[1737662294318,3.2078,3207.3,3206.2,3.2078]
[1737662294319,6.98154223,3207.2,3206.2,3.2078]
[1737662294625,4.13282206,3206.8,3206.2,3.2078]
[1737662294832,2.3987,3207.2,3206.6,3.2078]
[1737662294833,4.05995536,3207.1,3206.6,3.2078]
[1737662295024,0.62346,3206.8,3206.6,3.2078]
[1737662295222,0.62347,3206.7,3206.6,3.2078]
[1737662295621,0.62347,3206.7,3206.1,0.00468041]
[1737662295622,0.62355,3206.3,3206.2,3.2078]
[1737662295823,0.62357,3206.2,3206.1,0.00468041]
[1737662296322,4.76196552,3206.2,3206.1,0.00468041]
[1737662299926,9.76196552,3206.2,3206.1,0.00468041]
[1737662300124,9.13839552,3206.2,3205.2,3.2078]
[1737662300323,0.62369,3205.6,3205.3,0.62374]
[1737662300630,3.2078,3206.0,3205.2,3.2078]
[1737662301025,4.07389588,3205.9,3205.3,0.62374]
[1737662301330,0.6237,3205.6,3205.3,0.00468041]
[1737662301529,4.07857629,3205.9,3205.3,0.00468041]
[1737662301530,4.07857629,3205.9,3205.3,0.62842041]
[1737662301835,0.62368,3205.7,3205.3,0.62843041]
[1737662302429,0.62372,3205.5,3205.3,0.00468041]
[1737662302625,4.04462037,3205.6,3205.3,0.00468041]
[1737662302928,0.6237,3205.6,3205.3,0.00468041]
[1737662303333,0.62373,3205.4,3205.3,0.00468041]
[1737662303832,4.74575088,3205.4,3205.3,0.00468041]
[1737662305732,7.95355088,3205.4,3205.3,0.00468041]
[1737662306031,12.95355088,3205.4,3205.3,0.00468041]
[1737662306635,13.24612245,3205.4,3205.3,0.00468041]
[1737662306831,13.24612245,3205.4,3204.4,3.2078]
[1737662306832,0.6239,3204.5,3204.4,3.2078]
[1737662307533,0.62389,3204.6,3204.4,3.2078]
[1737662308540,4.0467903,3204.9,3204.4,3.2078]
[1737662309037,0.62389,3204.6,3204.4,3.2078]
[1737662309434,4.0467903,3204.9,3204.4,3.2078]
[1737662309634,0.62389,3204.6,3204.4,3.2078]
[1737662309836,0.6239,3204.6,3204.4,3.2078]
[1737662310038,4.0467903,3204.9,3204.4,3.2078]
[1737662310226,3.83154,3205.4,3205.2,0.62376]
[1737662310429,3.2078,3205.4,3205.2,0.62376]
[1737662310625,3.83145,3205.8,3205.6,0.62368]
[1737662310837,3.2078,3205.8,3205.6,0.62368]
[1737662311026,3.2078,3205.8,3205.7,0.62367]
[1737662311231,0.00468041,3205.9,3205.8,0.62365]
[1737662312235,3.2078,3207.7,3205.8,7.99998586]
[1737662312433,3.2078,3207.7,3207.5,2.99998586]
[1737662312638,3.2078,3207.7,3207.6,0.6233]
[1737662313637,0.62334,3207.4,3207.3,0.00468041]
[1737662314241,1.55799,3208.2,3207.3,0.00468041]
[1737662314242,3.2078,3209.4,3207.3,6.51271217]
[1737662314538,3.2078,3209.4,3208.4,3.30023176]
[1737662314741,3.2078,3209.4,3208.1,3.2078]
[1737662315042,0.62302,3209.1,3208.5,3.2078]
[1737662315245,0.62302,3209.1,3208.7,0.62308]
[1737662315431,4.0743009,3209.3,3208.5,3.21248041]
[1737662315636,0.62311,3208.6,3208.5,0.00468041]
[1737662315834,3.2078,3208.8,3208.5,0.00468041]
[1737662316039,0.62311,3208.6,3208.5,0.00468041]
[1737662317336,4.63375879,3208.7,3208.5,0.00468041]
[1737662317744,4.01066879,3208.7,3208.5,0.00468041]
[1737662318040,0.62311,3208.6,3208.5,0.00468041]
[1737662318237,0.62311,3208.6,3208.5,4.1e-07]
[1737662318445,12.3249604,3208.6,3207.1,3.2078]
[1737662318630,3.2078,3208.4,3207.1,3.2078]
[1737662319033,0.62324,3208.0,3207.5,3.2078]
[1737662319337,0.6232,3208.2,3207.7,0.62327]